bitfinex/quotes_BTCUSD_20250618
["timestamp","ask_amount","ask_price","bid_price","bid_amount"]
[1750246452107,0.005,104610.0,104600.0,0.36348661]
[1750246452588,0.005,104610.0,104600.0,0.39368661]
[1750246453256,0.005,104610.0,104600.0,0.36348661]
[1750246453461,0.005,104610.0,104600.0,0.34062261]
[1750246456169,0.005,104610.0,104600.0,0.37064261]
[1750246456385,0.005,104610.0,104600.0,0.37060261]
[1750246457054,0.002,104610.0,104600.0,0.37060261]
[1750246457719,0.40496375,104620.0,104600.0,0.37060261]
[1750246458189,0.002,104610.0,104600.0,0.37060261]
[1750246458397,0.002,104610.0,104600.0,0.34050261]
[1750246458608,0.40496375,104620.0,104600.0,0.34050261]
[1750246458820,0.003,104610.0,104600.0,0.34050261]
[1750246459030,0.43596375,104620.0,104600.0,0.34050261]
[1750246459450,0.001,104610.0,104600.0,0.34050261]
[1750246459671,0.43596375,104620.0,104600.0,0.34050261]
[1750246460102,0.43896533,104620.0,104600.0,0.34050261]
[1750246460324,0.43596533,104620.0,104610.0,0.15648]
[1750246460763,0.0311,104610.0,104600.0,0.27306261]
[1750246460971,0.05795258,104610.0,104600.0,0.27306261]
[1750246461863,0.05795258,104610.0,104600.0,0.19704]
[1750246462315,0.05795258,104610.0,104590.0,0.0306]
[1750246462316,0.08855258,104610.0,104590.0,0.0306]
[1750246462542,0.42855258,104610.0,104590.0,0.0306]
[1750246462768,0.43626919,104610.0,104600.0,0.0406]
[1750246462979,0.43626932,104610.0,104580.0,0.3376722]
[1750246463108,0.43626932,104610.0,104590.0,0.19708]
[1750246463556,0.09526932,104610.0,104590.0,0.19708]
[1750246464023,0.09626932,104610.0,104590.0,0.19708]
[1750246465271,0.09526932,104610.0,104590.0,0.19708]
[1750246465823,0.0311,104600.0,104590.0,0.19704]
[1750246466477,0.05985258,104610.0,104590.0,0.0629]
[1750246466691,0.05885258,104610.0,104590.0,0.25994]
[1750246466904,0.43854175,104620.0,104590.0,0.25994]
[1750246467082,0.003,104610.0,104590.0,0.25994]
[1750246468417,0.43854175,104620.0,104590.0,0.25994]
[1750246468631,0.002,104610.0,104590.0,0.3261554]
[1750246469287,0.003,104610.0,104590.0,0.3261554]
[1750246469702,0.003,104610.0,104590.0,0.25994]
[1750246470162,0.003,104610.0,104590.0,0.0629]
[1750246470374,0.003,104610.0,104600.0,0.19704]
[1750246470583,0.004,104610.0,104600.0,0.19704]
[1750246470794,0.004,104610.0,104600.0,0.1897746]
[1750246471006,0.004,104610.0,104600.0,0.0406]
[1750246471219,0.004,104610.0,104600.0,0.00536541]
[1750246471688,0.001,104610.0,104600.0,0.00536541]
[1750246471905,0.47114175,104620.0,104600.0,0.00536541]
[1750246472120,0.003,104610.0,104600.0,0.06866541]
[1750246472319,0.004,104610.0,104600.0,0.06866541]
[1750246472780,0.001,104610.0,104600.0,0.06866541]
[1750246472994,0.47114175,104620.0,104600.0,0.06866541]
[1750246473185,0.47714175,104620.0,104600.0,0.06866541]
[1750246473392,0.47214175,104620.0,104600.0,0.06866541]
[1750246473819,0.47114175,104620.0,104600.0,0.06866541]
[1750246474442,5.100112,104620.0,104610.0,0.0635]
[1750246474647,0.34,104610.0,104600.0,0.06886541]
[1750246474874,0.001,104610.0,104600.0,0.06886541]
[1750246475289,0.34,104610.0,104600.0,0.06886541]
[1750246476337,0.39136358,104630.0,104600.0,0.06886541]
[1750246476601,0.34,104610.0,104600.0,0.06886541]
[1750246478587,4.900112,104620.0,104600.0,0.06886541]
[1750246478789,0.2321,104620.0,104600.0,0.06886541]
[1750246479016,0.26571036,104620.0,104600.0,0.06886541]
[1750246479446,0.29771036,104620.0,104600.0,0.06886541]
[1750246479655,0.29771037,104620.0,104600.0,0.06886541]
[1750246480070,0.29771039,104620.0,104600.0,0.06886541]
[1750246480533,0.2567815,104620.0,104590.0,0.1045]
[1750246480756,0.4032,104610.0,104590.0,0.04335]
[1750246480948,0.0319,104600.0,104590.0,0.0406]
[1750246481166,0.04982555,104600.0,104590.0,0.0406]
[1750246481369,0.05878832,104600.0,104590.0,0.0406]
[1750246482235,0.02688832,104600.0,104590.0,0.1112054]
[1750246482448,0.4065107,104610.0,104590.0,0.1112054]
[1750246482659,0.4065107,104610.0,104590.0,0.1132054]
[1750246482907,0.40651149,104610.0,104590.0,0.1132054]
[1750246483609,0.37361149,104610.0,104590.0,0.1132054]
[1750246483835,0.37361149,104610.0,104590.0,0.1456054]
[1750246485429,0.37361149,104610.0,104590.0,0.1436054]
[1750246485640,0.4037,104620.0,104590.0,0.23984716]
[1750246485845,0.43731317,104620.0,104590.0,0.23984716]
[1750246486066,0.43446805,104620.0,104600.0,0.0633]
[1750246486248,0.43446805,104620.0,104600.0,0.08733472]
[1750246486504,0.43446805,104620.0,104600.0,0.05623472]
[1750246486943,0.43646805,104620.0,104600.0,0.05623472]
[1750246487162,0.43546805,104620.0,104600.0,0.05623472]
[1750246487385,0.43646805,104620.0,104600.0,0.05623472]
[1750246487597,0.43546805,104620.0,104600.0,0.05623472]
[1750246487808,0.43646805,104620.0,104600.0,0.05623472]
[1750246488031,0.46946805,104620.0,104600.0,0.00836931]
[1750246488464,0.46050454,104620.0,104590.0,0.20814716]
[1750246490242,0.43646844,104620.0,104600.0,0.05158472]
[1750246490706,0.43546844,104620.0,104600.0,0.05158472]
[1750246491140,0.43646844,104620.0,104600.0,0.08188472]
[1750246491351,0.43647672,104620.0,104600.0,0.08188472]
[1750246491541,0.37562175,104620.0,104600.0,0.0611]
[1750246491790,0.37462175,104620.0,104600.0,0.01323459]
[1750246492010,0.40712175,104620.0,104600.0,0.01323459]
[1750246492226,0.46387687,104620.0,104590.0,0.17704716]
[1750246492462,0.46387687,104620.0,104590.0,0.17943714]
[1750246493323,0.46187687,104620.0,104590.0,0.17943714]
[1750246493529,0.46287687,104620.0,104590.0,0.17943714]
[1750246493743,0.46387687,104620.0,104600.0,0.0406]
[1750246493967,0.46387764,104620.0,104600.0,0.0406]
[1750246494184,0.34,104610.0,104600.0,1e-08]
[1750246494400,0.37362407,104610.0,104600.0,1e-08]
[1750246494615,0.39657919,104610.0,104600.0,1e-08]
[1750246494829,0.39657919,104610.0,104600.0,0.03300001]
[1750246495271,0.05657919,104610.0,104600.0,0.0736]
[1750246495493,0.03362407,104610.0,104600.0,0.0736]
[1750246495732,0.01793315,104610.0,104600.0,0.06600001]
[1750246496152,0.01793315,104610.0,104600.0,0.0587346]
[1750246496814,0.01793315,104610.0,104600.0,0.04547362]
[1750246497068,0.01793207,104610.0,104600.0,0.04547362]
[1750246498139,0.01793207,104610.0,104600.0,0.02595544]
[1750246498606,0.01793207,104610.0,104600.0,0.05865544]
[1750246499037,0.01793207,104610.0,104600.0,0.02595544]
[1750246499473,0.47607774,104620.0,104600.0,0.02595544]
[1750246499696,0.47607788,104620.0,104600.0,0.02595544]
[1750246500395,0.0635,104610.0,104600.0,0.0406]
[1750246500624,0.09712311,104610.0,104600.0,0.0406]
[1750246500852,0.09712311,104610.0,104600.0,0.02595544]
[1750246501305,0.09712311,104610.0,104590.0,0.29372176]
[1750246502434,0.09712373,104610.0,104590.0,0.35632176]
[1750246503096,0.09712378,104610.0,104590.0,0.35632176]
[1750246503611,0.03362378,104610.0,104590.0,0.39957916]
[1750246504060,0.03362378,104610.0,104600.0,0.14387248]
[1750246504250,0.02689845,104610.0,104600.0,0.17278261]
[1750246504520,0.11222378,104620.0,104600.0,0.21354261]
[1750246504745,0.11222431,104620.0,104600.0,0.18224261]
[1750246505195,0.11222431,104620.0,104600.0,0.15154261]
[1750246505196,0.11222715,104620.0,104600.0,0.15154261]
[1750246506122,0.11322715,104620.0,104600.0,0.15154261]
[1750246506580,0.04882715,104620.0,104610.0,0.0328]
[1750246506800,0.04882522,104620.0,104600.0,0.29229481]
[1750246507018,0.03462522,104620.0,104600.0,0.25949481]
[1750246507676,0.01993448,104620.0,104600.0,0.25949481]
[1750246508330,0.0666,104620.0,104600.0,0.30838261]
[1750246508549,0.0935007,104620.0,104600.0,0.30838261]
[1750246509005,0.0636,104610.0,104600.0,0.04076]
[1750246509244,0.45370972,104610.0,104580.0,0.15449305]
[1750246509453,0.41978112,104610.0,104590.0,0.19768]
[1750246509716,0.4049,104600.0,104590.0,0.19768]
[1750246509933,0.4049,104600.0,104590.0,0.04076]
[1750246509934,0.42283448,104600.0,104590.0,0.04076]
[1750246510608,0.42283448,104600.0,104580.0,0.29392176]
[1750246510841,0.43178642,104600.0,104580.0,0.29392176]
[1750246511267,0.43178642,104600.0,104590.0,0.001]
[1750246511965,0.09178642,104600.0,104590.0,0.001]
[1750246512679,0.09178642,104600.0,104580.0,0.29392176]
[1750246512920,0.09178642,104600.0,104580.0,0.29492176]
[1750246513337,0.09178642,104600.0,104580.0,0.29392176]
[1750246513785,0.12033715,104600.0,104580.0,0.13700176]
[1750246514003,0.09178642,104600.0,104580.0,0.29392176]
[1750246514245,0.09178642,104600.0,104580.0,0.29388176]
[1750246514698,0.05928642,104600.0,104580.0,0.13700176]
[1750246514914,0.063,104590.0,104580.0,0.29392176]
[1750246515147,0.08092428,104590.0,104580.0,0.29392176]
[1750246515332,0.38658185,104590.0,104580.0,0.29392176]
[1750246516238,0.38658185,104590.0,104580.0,0.29492176]
[1750246516901,0.38658185,104590.0,104580.0,0.26520177]
[1750246517117,0.34,104580.0,104560.0,0.35061305]
[1750246517331,0.42412428,104580.0,104570.0,0.29404916]
[1750246517576,0.39092428,104580.0,104570.0,0.29404916]
[1750246518007,0.05092428,104580.0,104570.0,0.29404916]
[1750246518241,0.01792428,104580.0,104570.0,0.35851538]
[1750246518450,0.12174196,104590.0,104570.0,0.35851538]
[1750246518883,0.12174196,104590.0,104570.0,0.36351538]
[1750246519308,0.12172299,104590.0,104570.0,0.20651538]
[1750246519556,0.12172299,104590.0,104570.0,0.39357538]
[1750246520429,0.12172299,104590.0,104570.0,0.38957538]
[1750246520896,0.12172299,104590.0,104570.0,0.39157538]
[1750246521617,0.11276785,104590.0,104570.0,0.39157538]
[1750246522511,0.04656785,104590.0,104580.0,0.06699034]
[1750246522727,0.02865757,104590.0,104580.0,0.06699034]
[1750246522947,0.02865757,104590.0,104580.0,0.10983691]
[1750246523173,0.43559931,104600.0,104580.0,0.10983691]
[1750246523388,0.44454919,104600.0,104580.0,0.10744657]
[1750246523600,0.44454965,104600.0,104580.0,0.0319]
[1750246523805,0.46244942,104600.0,104580.0,0.0319]
[1750246524011,0.46244942,104600.0,104580.0,0.0349]
[1750246524425,0.09004942,104600.0,104580.0,0.15836]
[1750246524631,0.0324,104590.0,104580.0,0.15836]
[1750246524839,0.05030245,104590.0,104580.0,0.15836]
[1750246525045,0.0324,104590.0,104580.0,0.15836]
[1750246525258,0.09379977,104600.0,104580.0,0.15836]
[1750246525463,0.12065343,104600.0,104580.0,0.15736]
[1750246526301,0.12065274,104600.0,104580.0,0.15736]
[1750246526720,0.0332,104590.0,104580.0,0.15736]
[1750246527133,0.0332,104590.0,104580.0,0.15936]
[1750246527353,0.0332,104590.0,104580.0,0.15736]
[1750246527562,0.06235267,104590.0,104580.0,0.15736]
[1750246528154,0.06235267,104590.0,104580.0,0.15936]
[1750246528720,0.06235267,104590.0,104580.0,0.16036]
[1750246528966,0.43465267,104590.0,104580.0,0.16036]
[1750246530014,0.09465267,104590.0,104580.0,0.003]
[1750246530214,0.09465267,104590.0,104570.0,0.29017941]
[1750246530543,0.04705293,104590.0,104580.0,0.0319]
[1750246530751,0.04705293,104590.0,104580.0,0.22986]
[1750246531653,0.04705281,104590.0,104580.0,0.22986]
[1750246531872,0.01790014,104590.0,104580.0,0.22986]
[1750246532082,0.01790014,104590.0,104580.0,0.23186]
[1750246532299,0.01790014,104590.0,104580.0,0.28097356]
[1750246532518,0.04644965,104590.0,104580.0,0.28097356]
[1750246532769,0.11399991,104600.0,104580.0,0.24907356]
[1750246532986,0.11399991,104600.0,104580.0,0.19996]
[1750246532987,0.0645,104590.0,104580.0,0.19996]
[1750246533208,0.08239753,104590.0,104580.0,0.19996]
[1750246533421,0.08239753,104590.0,104580.0,0.20096]
[1750246533852,0.08239753,104590.0,104580.0,0.19896]
[1750246534091,0.08239758,104590.0,104580.0,0.19896]
[1750246536068,0.08239758,104590.0,104580.0,0.19996]
[1750246536276,0.11120685,104590.0,104580.0,0.19996]
[1750246536490,0.09330927,104590.0,104580.0,0.19996]
[1750246536712,0.11120876,104590.0,104580.0,0.19996]
[1750246537930,0.11120876,104590.0,104580.0,0.19316814]
[1750246538093,0.11120876,104590.0,104580.0,0.04308]
[1750246538289,0.12017148,104590.0,104580.0,0.03505]
[1750246539431,0.46019744,104590.0,104580.0,0.03505]
[1750246539666,0.46019744,104590.0,104580.0,0.06671894]
[1750246539868,0.42799744,104590.0,104580.0,0.06671894]
[1750246540026,0.39569744,104590.0,104580.0,0.09821894]
[1750246540238,0.38673472,104590.0,104580.0,0.13131894]
[1750246541077,0.39569794,104590.0,104580.0,0.26132894]
[1750246542105,0.38673472,104590.0,104580.0,0.26136894]
[1750246542304,0.39569815,104590.0,104580.0,0.26136894]
[1750246542511,0.39569815,104590.0,104580.0,0.2297]
[1750246542735,0.39569815,104590.0,104580.0,0.22974]
[1750246543189,0.39569815,104590.0,104580.0,0.19824]
[1750246543711,0.39569815,104590.0,104580.0,0.22914]
[1750246544014,0.39569815,104590.0,104580.0,0.27200716]
[1750246544837,0.39569815,104590.0,104580.0,0.24110716]
[1750246545568,0.3777727,104590.0,104580.0,0.27200716]
[1750246545759,0.39570484,104590.0,104580.0,0.27200716]
[1750246546155,0.39570484,104590.0,104580.0,0.24110716]
[1750246546380,0.38674141,104590.0,104580.0,0.24110716]
[1750246546555,0.38674141,104590.0,104580.0,0.27200716]
[1750246546781,0.38674141,104590.0,104580.0,0.24110716]
[1750246550862,0.386742,104590.0,104580.0,0.24110716]
[1750246551077,0.419842,104590.0,104580.0,0.24110716]
[1750246551286,0.419842,104590.0,104580.0,0.19824]
[1750246553535,0.41326923,104580.0,104570.0,0.1981274]
[1750246553769,0.4312077,104580.0,104570.0,0.1981274]
[1750246554229,0.42223847,104580.0,104570.0,0.1981274]
[1750246554470,0.08223463,104580.0,104570.0,0.1981274]
[1750246554889,0.08223463,104580.0,104570.0,4.74e-05]
[1750246555104,0.08223463,104580.0,104570.0,0.0020474]
[1750246555343,0.09120213,104580.0,104570.0,0.0020474]
[1750246555541,0.09120213,104580.0,104570.0,0.0050474]
[1750246556382,0.09120246,104580.0,104570.0,0.0050474]
[1750246561586,0.01793463,104580.0,104570.0,0.07023805]
[1750246561832,0.25569291,104590.0,104570.0,0.16647981]
[1750246562049,0.2467317,104590.0,104580.0,0.04108]
[1750246562287,0.22880927,104590.0,104580.0,0.04108]
[1750246562502,0.22880927,104590.0,104580.0,0.07387026]
[1750246562716,0.22880927,104590.0,104580.0,0.26229026]
[1750246562929,0.22880927,104590.0,104580.0,0.35614176]
[1750246563773,0.22880927,104590.0,104580.0,0.35714176]
[1750246563982,0.02880927,104590.0,104580.0,0.35714176]
[1750246564415,0.36686047,104600.0,104580.0,0.35714176]
[1750246564640,0.41578034,104600.0,104580.0,0.35714176]
[1750246564861,0.41577927,104600.0,104580.0,0.35714176]
[1750246565875,0.41677927,104600.0,104580.0,0.39286068]
[1750246566105,0.41677927,104600.0,104580.0,0.39186068]
[1750246567340,0.40781696,104600.0,104580.0,0.39186068]
[1750246567536,0.41777555,104600.0,104580.0,0.39186068]
[1750246567954,0.41777555,104600.0,104580.0,0.36076068]
[1750246567955,0.34,104590.0,104580.0,0.36076068]
[1750246568368,0.34,104590.0,104580.0,0.39306068]
[1750246568924,0.04989977,104600.0,104580.0,0.39306068]
[1750246569140,0.41577519,104600.0,104580.0,0.39406068]
[1750246569380,0.41577519,104600.0,104580.0,0.39506068]
[1750246570232,0.07577261,104600.0,104580.0,0.39406068]
[1750246570655,0.07677261,104600.0,104580.0,0.39306068]
[1750246570839,0.07777261,104600.0,104580.0,0.39306068]
[1750246571210,0.11067261,104600.0,104580.0,0.39306068]
[1750246571819,0.07777261,104600.0,104580.0,0.39306068]
[1750246572596,0.04677261,104600.0,104580.0,0.39306068]
[1750246573311,0.07957261,104600.0,104580.0,0.39306068]
[1750246574209,0.11187261,104600.0,104580.0,0.39306068]
[1750246574619,0.11187261,104600.0,104580.0,0.20002176]
[1750246574847,0.11187261,104600.0,104590.0,0.1574]
[1750246575449,0.11187115,104600.0,104590.0,0.1574]
[1750246576011,0.11087115,104600.0,104590.0,0.1574]
[1750246576206,0.11187115,104600.0,104590.0,0.1574]
[1750246577389,0.04577115,104600.0,104590.0,0.20646944]
[1750246577605,0.02885592,104600.0,104590.0,0.1903]
[1750246577807,0.01989977,104600.0,104590.0,0.1903]
[1750246578014,0.01989977,104600.0,104590.0,0.1574]
[1750246579163,0.35989977,104600.0,104590.0,0.1574]
[1750246579384,0.38676342,104600.0,104590.0,0.1574]
[1750246579594,0.38676342,104600.0,104590.0,0.19321218]
[1750246579795,0.38676342,104600.0,104590.0,0.1574]
[1750246580056,0.35989977,104600.0,104590.0,0.1574]
[1750246580225,0.01989977,104600.0,104590.0,0.1574]
[1750246580399,0.01989977,104600.0,104590.0,0.1914901]
[1750246580597,0.35989977,104600.0,104590.0,0.1914901]
[1750246581573,0.01989977,104600.0,104590.0,0.1914901]
[1750246581990,0.01989977,104600.0,104590.0,0.1597901]
[1750246582570,0.09529559,104600.0,104590.0,0.15724]
[1750246582793,0.0644,104590.0,104580.0,0.09624176]
[1750246582996,0.08230754,104590.0,104570.0,4.74e-05]
[1750246583357,0.0644,104580.0,104570.0,0.0411674]
[1750246583567,0.0644,104580.0,104570.0,0.1984074]
[1750246584691,0.0644,104580.0,104570.0,0.1994074]
[1750246584916,0.0644,104580.0,104570.0,0.1984074]
[1750246585119,0.0644,104580.0,104570.0,0.2014074]
[1750246585495,0.0644,104580.0,104570.0,0.2034074]
[1750246588331,0.0644,104580.0,104570.0,0.0461674]
[1750246588537,0.41374435,104580.0,104570.0,0.0461674]
[1750246588739,0.43165828,104580.0,104570.0,0.0461674]
[1750246589182,0.42231393,104580.0,104570.0,0.04458287]
[1750246589802,0.08231358,104580.0,104570.0,0.04458287]
[1750246589998,0.2498513,104600.0,104570.0,0.04458287]
[1750246590230,0.57969513,104600.0,104570.0,0.04458287]
[1750246590411,0.37969513,104600.0,104570.0,0.07478287]
[1750246590626,0.37969513,104600.0,104570.0,0.07082316]
[1750246590808,0.37969513,104600.0,104570.0,0.06936029]
[1750246591210,0.38069513,104600.0,104570.0,0.06936029]
[1750246591410,0.38069513,104600.0,104570.0,0.06736029]
[1750246591819,0.38169513,104600.0,104570.0,0.06736029]
[1750246592604,0.38169198,104600.0,104570.0,0.06736029]
[1750246593001,0.0628,104590.0,104570.0,0.06736029]
[1750246593214,0.07181667,104590.0,104570.0,0.06736029]
[1750246593673,0.07181667,104590.0,104570.0,0.04112]
[1750246594291,0.07181667,104590.0,104570.0,0.04212]
[1750246594541,0.07181667,104590.0,104570.0,0.04206073]
[1750246594542,0.0319,104580.0,104570.0,0.04206073]
[1750246596090,0.0319,104580.0,104570.0,0.04106073]
[1750246596600,0.0319,104580.0,104570.0,0.04306073]
[1750246596765,0.0319,104580.0,104570.0,0.04506073]
[1750246597147,0.0319,104580.0,104570.0,0.0715368]
[1750246597580,0.26236293,104600.0,104570.0,0.0715368]
[1750246597778,0.31191056,104600.0,104570.0,0.1035368]
[1750246598032,0.33485603,104600.0,104570.0,0.1035368]
[1750246598888,0.36359803,104600.0,104570.0,0.1035368]
[1750246599307,0.39243077,104600.0,104570.0,0.1015368]
[1750246599754,0.34,104590.0,104570.0,0.1015368]
[1750246599967,0.3489536,104590.0,104580.0,0.0622]
[1750246600611,0.0089536,104590.0,104570.0,0.205989]
[1750246600856,0.20514269,104600.0,104570.0,0.17951293]
[1750246601074,0.20514269,104600.0,104570.0,0.18051293]
[1750246601749,0.20514192,104600.0,104570.0,0.18051293]
[1750246602176,0.22504765,104600.0,104570.0,0.10426073]
[1750246602396,0.405,104590.0,104570.0,0.07304]
[1750246602606,0.45478056,104590.0,104570.0,0.07304]
[1750246603695,0.55102232,104590.0,104570.0,0.032]
[1750246603922,0.55773699,104590.0,104560.0,0.10334]
[1750246604358,0.55773699,104590.0,104570.0,0.001]
[1750246604359,0.55773725,104590.0,104570.0,0.001]
[1750246605066,0.55773725,104590.0,104570.0,0.0318]
[1750246605533,0.55973725,104590.0,104570.0,0.0318]
[1750246605747,0.55973725,104590.0,104570.0,0.0308]
[1750246606603,0.55773725,104590.0,104570.0,0.0308]
[1750246606815,0.55773725,104590.0,104570.0,0.02573]
[1750246607019,0.55873725,104590.0,104570.0,0.02573]
[1750246607447,0.55873725,104590.0,104570.0,0.01936]
[1750246607660,0.55873916,104590.0,104560.0,0.07254]
[1750246609112,0.55873916,104590.0,104560.0,0.07493068]
[1750246609355,0.52692974,104590.0,104570.0,0.0317]
[1750246609549,0.49282974,104590.0,104570.0,0.0317]
[1750246609981,0.4938379,104590.0,104570.0,0.0317]
[1750246610644,0.5567379,104590.0,104570.0,0.06203697]
[1750246610853,0.5557379,104590.0,104570.0,0.06203697]
[1750246611283,0.5567379,104590.0,104570.0,0.06203697]
[1750246612153,0.5567379,104590.0,104560.0,0.07374]
[1750246612749,0.54777914,104590.0,104560.0,0.07374]
[1750246613025,0.55674801,104590.0,104560.0,0.07374]
[1750246613435,0.58442985,104590.0,104560.0,0.07374]
[1750246613590,0.58442985,104590.0,104560.0,0.10454]
[1750246613796,0.58542985,104590.0,104560.0,0.13214609]
[1750246614586,0.5839518,104590.0,104560.0,0.13214609]
[1750246614794,0.0316,104580.0,104560.0,0.13214609]
[1750246614990,0.04056887,104580.0,104560.0,0.13214609]
[1750246615205,0.0584746,104580.0,104560.0,0.0635]
[1750246615404,0.0889746,104580.0,104560.0,0.07374]
[1750246615617,0.09570151,104580.0,104560.0,0.07374]
[1750246616002,0.09570151,104580.0,104560.0,0.07474]
[1750246616225,0.09570151,104580.0,104560.0,0.10884]
[1750246616579,0.37959771,104590.0,104560.0,0.10884]
[1750246616899,0.40827955,104590.0,104560.0,0.10884]
[1750246617544,0.40827955,104590.0,104560.0,0.0668]
[1750246617744,4.900112,104580.0,104560.0,0.0337]
[1750246617919,0.022922,104580.0,104560.0,0.0337]
[1750246618270,4.700112,104580.0,104560.0,0.0337]
[1750246618471,0.022922,104580.0,104560.0,0.0337]
[1750246618700,0.022922,104580.0,104560.0,0.0628]
[1750246618701,0.54,104580.0,104560.0,0.0628]
[1750246618929,0.562922,104580.0,104560.0,0.0628]
[1750246619145,0.48976376,104580.0,104550.0,0.07124]
[1750246619394,0.2301,104570.0,104560.0,0.001]
[1750246619608,0.4011,104570.0,104560.0,0.001]
[1750246619813,0.424022,104570.0,104560.0,0.002]
[1750246620237,0.34,104560.0,104550.0,0.02336447]
[1750246620456,0.34,104560.0,104540.0,0.1173922]
[1750246621359,0.34,104560.0,104540.0,0.16924751]
[1750246621588,0.34,104560.0,104540.0,0.17163861]
[1750246622232,0.34,104560.0,104550.0,0.0339]
[1750246622452,0.43624176,104570.0,104550.0,0.0645]
[1750246622634,0.43624176,104570.0,104550.0,0.0625]
[1750246622635,0.45918448,104570.0,104550.0,0.0625]
[1750246623128,0.45918448,104570.0,104550.0,0.08607475]
[1750246623340,0.49028448,104570.0,104550.0,0.0625]
[1750246623556,0.49028448,104570.0,104550.0,0.0665]
[1750246623769,0.49028448,104570.0,104550.0,0.0635]
[1750246624642,0.49028448,104570.0,104550.0,0.0655]
[1750246624855,0.52068448,104570.0,104550.0,0.0349]
[1750246628537,0.54755057,104570.0,104550.0,0.003]
[1750246628752,0.54755057,104570.0,104550.0,0.0338]
[1750246629196,0.54755057,104570.0,104550.0,0.003]
[1750246629424,0.0616,104560.0,104540.0,0.0816152]
[1750246629685,0.08846609,104560.0,104540.0,0.0483152]
[1750246629918,0.18470785,104560.0,104530.0,0.29076]
[1750246630139,0.3707,104550.0,104530.0,0.10184]
[1750246630350,0.41951073,104550.0,104530.0,0.05395566]
[1750246630786,0.41951073,104550.0,104540.0,0.002]
[1750246631008,0.38861073,104550.0,104540.0,0.002]
[1750246631227,0.35791073,104550.0,104530.0,0.03336289]
[1750246631445,0.34,104560.0,104530.0,0.14656386]
[1750246631651,0.39647819,104560.0,104530.0,0.14656386]
[1750246631865,0.39647819,104560.0,104530.0,0.14417237]
[1750246632311,0.38976603,104560.0,104530.0,0.14417237]
[1750246632543,0.39647821,104560.0,104530.0,0.14217237]
[1750246632985,0.001,104550.0,104530.0,0.14217237]
[1750246633212,0.39647821,104560.0,104540.0,0.062]
[1750246633444,0.42667821,104560.0,104540.0,0.08241724]
[1750246633664,0.42967821,104560.0,104540.0,0.08241724]
[1750246633885,0.42667821,104560.0,104540.0,0.08241724]
[1750246634317,0.001,104550.0,104540.0,0.08241724]
[1750246634535,0.42667508,104560.0,104540.0,0.062]
[1750246634814,0.42767508,104560.0,104540.0,0.062]
[1750246635033,0.39647508,104560.0,104550.0,0.0317]
[1750246635245,0.38975619,104560.0,104550.0,0.0317]
[1750246635463,0.39075619,104560.0,104550.0,0.0317]
[1750246636123,0.39375619,104560.0,104550.0,0.0317]
[1750246636576,0.38975619,104560.0,104550.0,0.0317]
[1750246637005,0.05275619,104560.0,104550.0,0.0317]
[1750246637223,0.36983881,104560.0,104550.0,0.07027]
[1750246637444,0.36089252,104560.0,104550.0,0.07027]
[1750246637863,0.36189252,104560.0,104550.0,0.07027]
[1750246638095,0.36189095,104560.0,104550.0,0.07027]
[1750246639592,0.02189095,104560.0,104550.0,0.07027]
[1750246639829,0.004,104560.0,104550.0,0.07027]
[1750246640963,0.001,104560.0,104550.0,0.07027]
[1750246641199,0.003,104560.0,104550.0,0.07027]
[1750246641414,0.002,104560.0,104550.0,0.07027]
[1750246641856,0.003,104560.0,104550.0,0.0641]
[1750246642302,0.41066719,104570.0,104550.0,0.0641]
[1750246642520,0.44166719,104570.0,104550.0,0.0641]
[1750246642734,0.44166719,104570.0,104550.0,0.0327]
[1750246642946,0.47406719,104570.0,104550.0,0.0327]
[1750246643379,0.47406719,104570.0,104550.0,0.0317]
[1750246643811,0.47606719,104570.0,104550.0,0.0317]
[1750246644656,0.47558905,104570.0,104550.0,0.0379]
[1750246644843,0.50427089,104570.0,104550.0,0.0379]
[1750246645100,0.50527089,104570.0,104550.0,0.0379]
[1750246645749,0.50527492,104570.0,104550.0,0.0379]
[1750246646419,0.47287492,104570.0,104550.0,0.0379]
[1750246646636,0.47288625,104570.0,104550.0,0.0707]
[1750246646857,0.44188625,104570.0,104550.0,0.0707]
[1750246647082,0.44188625,104570.0,104560.0,0.0328]
[1750246647299,0.41320441,104570.0,104560.0,0.03998]
[1750246648279,0.05176393,104570.0,104560.0,0.11112]
[1750246648510,0.05176393,104570.0,104560.0,0.22190261]
[1750246648511,0.003,104570.0,104560.0,0.22190261]
[1750246648764,0.001,104570.0,104560.0,0.22190261]
[1750246649267,0.003,104570.0,104560.0,0.22190261]
[1750246649517,0.002,104570.0,104560.0,0.22190261]
[1750246649992,0.001,104570.0,104560.0,0.22190261]
[1750246650224,0.001,104570.0,104560.0,0.22390261]
[1750246651216,0.38982434,104590.0,104570.0,0.0315]
[1750246651432,0.38982434,104590.0,104580.0,0.0324]
[1750246651639,0.02688375,104590.0,104580.0,0.07324]
[1750246651839,0.45533726,104600.0,104580.0,0.07324]
[1750246652097,0.45531442,104600.0,104580.0,0.07324]
[1750246652530,0.001,104590.0,104580.0,0.07324]
[1750246652744,0.003,104590.0,104580.0,0.07324]
[1750246652959,0.002,104590.0,104580.0,0.07324]
[1750246653164,0.45531442,104600.0,104580.0,0.07324]
[1750246653381,0.45931442,104600.0,104580.0,0.07324]
[1750246653589,0.45531442,104600.0,104580.0,0.07324]
[1750246654030,0.002,104590.0,104580.0,0.07324]
[1750246654846,0.002,104590.0,104580.0,0.08395304]
[1750246655059,0.002,104590.0,104580.0,0.11675304]
[1750246655268,0.42526261,104600.0,104580.0,0.08439304]
[1750246655475,0.05566114,104600.0,104590.0,0.0332]
[1750246655682,0.05071838,104600.0,104590.0,0.0332]
[1750246655905,0.04671838,104600.0,104590.0,0.0449593]
[1750246656311,0.02883274,104600.0,104590.0,0.0332]
[1750246656734,0.42447183,104610.0,104590.0,0.0332]
[1750246656940,0.004,104600.0,104590.0,0.0332]
[1750246657118,0.004,104600.0,104590.0,0.0633]
[1750246658216,0.006,104600.0,104590.0,0.0633]
[1750246658442,0.002,104600.0,104590.0,0.0633]
[1750246658682,0.40099649,104610.0,104600.0,0.0326]
[1750246659161,0.39499399,104610.0,104600.0,0.0326]
[1750246659644,0.36820022,104610.0,104600.0,0.0326]
[1750246659848,0.09200022,104610.0,104580.0,0.01071304]
[1750246660073,0.0638,104600.0,104590.0,0.04088]
[1750246660288,0.0638,104600.0,104570.0,0.0762522]
[1750246660495,0.0306,104590.0,104580.0,0.04088]
[1750246660719,0.0306,104590.0,104570.0,0.17249396]